Workbook

Sheet 週次販売活動
B1: 週次 販売活動 | I1: 販売員 | J1: 名前 | L1: 週の最終日 | M1: 日付
I3: 場所 | J3: 場所 | L3: 今日の日付 | M3: 日付
B5: 日 | C5: 営業所内 | D5: オフィス外 | E5: オフィス訪問 | F5: 社外通話 | G5: 通話の記録 | H5: 新しいアカウント電話 | I5: ゲスト ルーム | J5: 食品と飲料 | K5: MTG.ルーム レンタル | L5: その他* | M5: 合計
B6: 月曜日 | C6: ¥14.00 | D6: ¥23.00 | E6: ¥4.00 | F6: ¥45.00 | G6: ¥22.00 | H6: ¥2.00 | I6: ¥100.00 | J6: ¥0.00 | K6: ¥0.00 | L6: ¥0.00 | M6: =SUM(活動[[#This Row],[営業所内]:[その他*]]) -> ¥210.00
B7: 火曜日 | C7: ¥23.00 | D7: ¥76.00 | E7: ¥10.00 | F7: ¥50.00 | G7: ¥54.00 | H7: ¥45.00 | I7: ¥80.00 | J7: ¥0.00 | K7: ¥0.00 | L7: ¥0.00 | M7: =SUM(活動[[#This Row],[営業所内]:[その他*]]) -> ¥338.00
B8: 水曜日 | C8: ¥4.00 | D8: ¥130.00 | E8: ¥11.00 | F8: ¥33.00 | G8: ¥67.00 | H8: ¥65.00 | I8: ¥400.00 | J8: ¥0.00 | K8: ¥0.00 | L8: ¥0.00 | M8: =SUM(活動[[#This Row],[営業所内]:[その他*]]) -> ¥710.00
B9: 木曜日 | C9: ¥102.00 | D9: ¥40.00 | E9: ¥18.00 | F9: ¥0.00 | G9: ¥86.00 | H9: ¥82.00 | I9: ¥97.00 | J9: ¥0.00 | K9: ¥0.00 | L9: ¥0.00 | M9: =SUM(活動[[#This Row],[営業所内]:[その他*]]) -> ¥425.00
B10: 金曜日 | C10: ¥33.00 | D10: ¥55.00 | E10: ¥22.00 | F10: ¥49.00 | G10: ¥143.00 | H10: ¥26.00 | I10: ¥50.00 | J10: ¥0.00 | K10: ¥0.00 | L10: ¥0.00 | M10: =SUM(活動[[#This Row],[営業所内]:[その他*]]) -> ¥378.00
B11: 土曜日 | C11: ¥0.00 | D11: ¥0.00 | E11: ¥0.00 | F11: ¥0.00 | G11: ¥0.00 | H11: ¥0.00 | I11: ¥0.00 | J11: ¥0.00 | K11: ¥0.00 | L11: ¥0.00 | M11: =SUM(活動[[#This Row],[営業所内]:[その他*]]) -> ¥0.00
B12: 日曜日 | C12: ¥0.00 | D12: ¥0.00 | E12: ¥0.00 | F12: ¥0.00 | G12: ¥0.00 | H12: ¥0.00 | I12: ¥0.00 | J12: ¥0.00 | K12: ¥0.00 | L12: ¥0.00 | M12: =SUM(活動[[#This Row],[営業所内]:[その他*]]) -> ¥0.00
B13: 合計 | C13: =SUBTOTAL(109,活動[営業所内]) -> ¥176.00 | D13: =SUBTOTAL(109,活動[オフィス外]) -> ¥324.00 | E13: =SUBTOTAL(109,活動[オフィス訪問]) -> ¥65.00 | F13: =SUBTOTAL(109,活動[社外通話]) -> ¥177.00 | G13: =SUBTOTAL(109,活動[通話の記録]) -> ¥372.00 | H13: =SUBTOTAL(109,活動[新しいアカウント電話]) -> ¥220.00 | I13: =SUBTOTAL(109,活動[ゲスト ルーム]) -> ¥727.00 | J13: =SUBTOTAL(109,活動[食品と飲料]) -> ¥0.00 | K13: =SUBTOTAL(109,活動[MTG.ルーム レンタル]) -> ¥0.00 | L13: =SUBTOTAL(109,活動[その他*]) -> ¥0.00 | M13: =SUBTOTAL(109,活動[合計]) -> ¥2,061.00
B15: 目標 | C15: ¥200.00 | D15: ¥400.00 | E15: ¥300.00 | F15: ¥65.00 | G15: ¥500.00 | H15: ¥300.00 | I15: ¥400.00 | J15: ¥600.00 | K15: ¥300.00 | L15: ¥300.00 | M15: =SUM(C15:L15) -> ¥3,365.00
B16: 差額 | C16: =SUM(活動[[#Totals],[営業所内]]-C15) -> ¥-24.00 | D16: =SUM(活動[[#Totals],[オフィス外]]-D15) -> ¥-76.00 | E16: =SUM(活動[[#Totals],[オフィス訪問]]-E15) -> ¥-235.00 | F16: =SUM(活動[[#Totals],[社外通話]]-F15) -> ¥112.00 | G16: =SUM(活動[[#Totals],[通話の記録]]-G15) -> ¥-128.00 | H16: =SUM(活動[[#Totals],[新しいアカウント電話]]-H15) -> ¥-80.00 | I16: =SUM(活動[[#Totals],[ゲスト ルーム]]-I15) -> ¥327.00 | J16: =SUM(活動[[#Totals],[食品と飲料]]-J15) -> ¥-600.00 | K16: =SUM(活動[[#Totals],[MTG.ルーム レンタル]]-K15) -> ¥-300.00 | L16: =SUM(活動[[#Totals],[その他*]]-L15) -> ¥-300.00 | M16: =SUM(C16:L16) -> ¥-1,304.00
B18: * 説明
B20: 承認
